Cogmind - Beta 14 @@@ ROGUE MODE // 2024.10.27 @ 18:24:07 Player: SpaceWalrus Result: Destroyed by Y-64 Sentinel with KE Penetrator Performance ------------- Evolutions (6) 3000 Regions Visited (12) 2400 Robots Destroyed (34) 170 Value Destroyed (739) 739 Prototype IDs (3) 60 Alien Tech Used (0) 0 Bonus (8) 8 TOTAL SCORE: 6377 Bonus ------- High Alert Combat Kills 8 Cogmind --------- Core Integrity 0/1150 Matter 300/300 Energy 99/100 System Corruption 0% Temperature Cool (0) Movement Core (50) Location -4/Extension Parts ------- > --- POWER (2) -------- (None) > --- PROPULSION (4) --- (None) > --- UTILITY (10) ----- Improved Signal Interpreter Graphene Brace System Guard > --- WEAPON (3) ------- (None) > --- INVENTORY (5) ---- Advanced Sensor Array Advanced Transmission Jammer Hacking Suite System Shield System Shield Peak State ------------ > --- POWER ------------ Micro Nuclear Core Micro Fission Core > --- PROPULSION ------- Nuclear Pulse Thruster Nuclear Pulse Thruster Improved Surge Thruster Field Propulsion Drive > --- UTILITY ---------- Advanced Weight Redist. System Structural Scanner Experimental Sensor Array Improved Signal Interpreter Reaction Control System Hardened Light Armor Plating Graphene Brace Improved System Shield Improved System Shield System Guard > --- WEAPON ----------- Thermic Laser Great Maul Plasma Lance > --- INVENTORY -------- Advanced Sensor Array Advanced Transmission Jammer Hacking Suite System Shield System Shield [Rating: 92] Favorites ----------- Power Ion Engine Engine Ion Engine Power Core Light Nuclear Core Propulsion Aluminum Leg Leg Aluminum Leg Flight Unit Nuclear Pulse Thruster Utility Advanced Targeting Computer Device Structural Scanner Storage Small Storage Unit Processor Advanced Targeting Computer Hackware Improved System Shield Protection Light Armor Plating Weapon Medium Laser Energy Gun Medium Laser Ballistic Gun Assault Rifle Ballistic Cannon Flak Cannon Launcher Heavy Missile Launcher Impact Weapon Great Maul Piercing Weapon Plasma Lance Build | -11 -10 -10 -10 -9 -8 -7 -6 -6 -6 -5 -4 -4 ------- Run | Yrd Mat Min Exi Min Mat Fac Fac Was Fac Fac Fac Ext Slots Evolved 12 | . . . . . 4 2 2 . . 2 2 . Power 1 | . . . . . . . 1 . . . . . Propulsion 2 | . . . . . 1 . . . . 1 . . Utility 8 | . . . . . 2 2 1 . . 1 2 . Weapon 1 | . . . . . 1 . . . . . . . Parts Attached 75 | 8 1 4 . 1 17 11 12 1 3 4 12 1 Power 11 | 1 . 1 . . 3 1 3 . . 1 1 . Engine 7 | 1 . 1 . . 2 . 3 . . . . . Core 4 | . . . . . 1 1 . . . 1 1 . Reactor . | . . . . . . . . . . . . . Propulsion 16 | 2 . . . . 2 1 4 1 . 1 4 1 Treads . | . . . . . . . . . . . . . Leg 3 | 2 . . . . 1 . . . . . . . Wheel . | . . . . . . . . . . . . . Hover . | . . . . . . . . . . . . . Flight 13 | . . . . . 1 1 4 1 . 1 4 1 Utility 31 | 2 1 3 . 1 5 5 4 . 2 1 7 . Device 19 | 1 1 3 . 1 4 2 2 . 1 . 4 . Storage 1 | 1 . . . . . . . . . . . . Processor 5 | . . . . . 1 2 1 . 1 . . . Hackware 3 | . . . . . . . . . . . 3 . Protection 3 | . . . . . . 1 1 . . 1 . . Artifact . | . . . . . . . . . . . . . Weapon 17 | 3 . . . . 7 4 1 . 1 1 . . Energy Gun 9 | 2 . . . . 4 2 1 . . . . . Energy Cannon . | . . . . . . . . . . . . . Ballistic Gun 3 | 1 . . . . 2 . . . . . . . Ballistic Cannon 1 | . . . . . 1 . . . . . . . Launcher 1 | . . . . . . 1 . . . . . . Special Weapon . | . . . . . . . . . . . . . Impact Weapon 2 | . . . . . . 1 . . . 1 . . Slashing Weapon . | . . . . . . . . . . . . . Piercing Weapon 1 | . . . . . . . . . 1 . . . Special Melee Weapon . | . . . . . . . . . . . . . Unidentified Prototypes 3 | . . 1 . . . . 1 . 1 . . . Corrupted Parts 1 | . . . . . . . . . 1 . . . System Corruption 5 | . . . . . . . . . 5 . . . Parts Lost 28 | . . . . . 11 . . 2 . . 6 9 Power 3 | . . . . . 1 . . . . . 1 1 Propulsion 9 | . . . . . 3 . . 1 . . 2 3 Utility 11 | . . . . . 3 . . 1 . . 3 4 Weapon 5 | . . . . . 4 . . . . . . 1 Highest Loss Streak 10 | . . . . . 10 . . 2 . . 6 6 To Critical Strikes . | . . . . . . . . . . . . . Average Slot Usage (%) 83 | . 100 100 100 100 68 52 86 83 89 95 93 35 Engine 6 | . 14 14 14 14 3 . 3 6 6 3 . . Core 2 | . . . . . 2 3 6 6 6 7 9 . Leg 12 | . 28 28 28 28 14 . . . . . . . Flight 7 | . . . . . 1 9 16 20 20 20 21 4 Device 15 | . 14 14 14 14 21 9 20 15 17 17 19 9 Storage 6 | . 14 14 14 14 6 . . . . . . . Processor 8 | . . . . . . 15 20 20 24 23 12 10 Hackware 1 | . . . . . . . . . . . 10 4 Protection 1 | . . . . . . 5 5 1 . 5 5 . Energy Gun 8 | . 14 14 14 14 9 6 6 6 6 5 4 . Ballistic Gun 6 | . 14 14 14 14 6 . . . . . . . Impact Weapon 1 | . . . . . . 1 6 6 6 3 5 2 Piercing Weapon 1 | . . . . . . . . . . 5 5 2 Peak Build Rating 92 | 7 7 15 8 8 18 37 55 55 66 77 92 62 Average Rating 28 | 5 7 7 8 8 12 23 45 51 56 71 83 34 On Entrance 29 | . 7 7 8 8 8 8 37 55 51 63 77 56 Naked Turns . | . . . . . . . . . . . . . Heaviest Build 31 | 15 15 15 15 15 20 16 23 23 23 28 31 15 Greatest Support 34 | 20 20 20 20 20 30 19 27 27 27 34 34 24 Greatest Overweight (x) 4 | 2 . . . . 4 1 . . . . . 2 Average Overweight (x) . | . . . . . . . . . . . . . Largest Inventory Capacity 8 | 8 8 8 8 8 8 5 5 5 5 5 5 5 Average Capacity 6 | 7 8 8 8 8 7 5 5 5 5 5 5 5 Most Carried 7 | 5 5 5 5 5 7 5 5 5 5 5 5 5 Average Carried 4 | 3 4 4 5 5 3 4 4 3 3 4 4 5 Final Capacity 8 | 8 8 8 8 8 5 5 5 5 5 5 5 5 Final Carried 5 | 3 4 5 5 5 5 5 5 4 4 5 5 5 Class Distribution -------------------- 77% | Mutant 6% | Skirmisher 5% | Sprinter 3% | Hacker-Scout Dominant Class ---------------- Mutant | -10/Materials Mutant | -10/Mines Mutant | -10/Exiles Mutant | -9/Mines Skirmisher | -8/Materials Mutant | -7/Factory Mutant | -6/Factory Mutant | -6/Waste Mutant | -6/Factory Sprinter | -5/Factory Hacker-Scout | -4/Factory Mutant | -4/Extension Resources | -11 -10 -10 -10 -9 -8 -7 -6 -6 -6 -5 -4 -4 ----------- Run | Yrd Mat Min Exi Min Mat Fac Fac Was Fac Fac Fac Ext Matter Collected 1097 | 314 . 95 . . 169 84 56 . . 279 100 . Remotely . | . . . . . . . . . . . . . Salvage Created 899 | 136 . 227 . . 114 33 108 . . 109 141 31 Parts 66 | 14 . 13 . . 7 3 . . . 6 21 2 Haulers Intercepted . | . . . . . . . . . . . . . Recyclers Shooed . | . . . . . . . . . . . . . Parts Field Recycled . | . . . . . . . . . . . . . Retrieved Matter . | . . . . . . . . . . . . . Parts Self-Destructed . | . . . . . . . . . . . . . Prevented . | . . . . . . . . . . . . . Kills | -11 -10 -10 -10 -9 -8 -7 -6 -6 -6 -5 -4 -4 ------- Run | Yrd Mat Min Exi Min Mat Fac Fac Was Fac Fac Fac Ext Combat Hostiles Destroyed 16 | . . 9 . . 4 . . . . . 3 . Melee 3 | . . . . . . . . . . . 3 . Guns 11 | . . 9 . . 2 . . . . . . . Cannons 2 | . . . . . 2 . . . . . . . Classes Destroyed 8 | 2 . 2 . . . 1 . . . 2 1 . Builder 6 | . . . . . . . . . . 3 1 2 Tunneler 3 | 3 . . . . . . . . . . . . Recycler 1 | 1 . . . . . . . . . . . . Operator 2 | . . . . . . . . . . 2 . . Watcher 6 | . . . . . . 1 4 . . . 1 . Swarmer 7 | . . 5 . . 2 . . . . . . . Cutter 3 | . . . . . . . . . . . 3 . Grunt 6 | . . 4 . . 2 . . . . . . . Best Kill Streak 7 | 2 . 7 . . 2 1 2 . . 3 2 2 Combat Bots Only 7 | . . 7 . . 2 . . . . . 2 . Max Kills in Single Turn 2 | 1 . 2 . . 1 1 1 . . 1 1 1 Gunslinging 1 | . . 1 . . . . . . . . . . Exploded . | . . . . . . . . . . . . . Melee 1 | . . . . . . . . . . . 1 . Uniques/NPCs Destroyed . | . . . . . . . . . . . . . Combat | -11 -10 -10 -10 -9 -8 -7 -6 -6 -6 -5 -4 -4 -------- Run | Yrd Mat Min Exi Min Mat Fac Fac Was Fac Fac Fac Ext Hostile Shots Fired 371 | . 2 25 . . 140 . 48 1 . 10 53 92 Missed 154 | . 1 10 . . 48 . 28 . . 6 26 35 Damage Taken 3929 | . 11 127 . . 1377 29 175 51 . 173 513 1473 Core 1679 | . . 37 . . 453 10 27 . . . 71 1081 Absorbed by Shields 24 | . . . . . . . . . . 5 . 19 Core Remaining (%) 82 | 100 . . . 85 17 98 . . 96 100 . . Volleys Fired 95 | 13 4 16 . . 34 15 9 . . 4 . . Largest 3 | 2 2 2 . . 3 1 1 . . 1 . . Hottest 135 | 70 70 70 . . 135 63 63 . . 85 . . Shots Fired 155 | 26 8 32 . . 61 15 9 . . 4 . . Gun 144 | 26 8 32 . . 50 15 9 . . 4 . . Cannon 11 | . . . . . 11 . . . . . . . Launcher . | . . . . . . . . . . . . . Special . | . . . . . . . . . . . . . Kinetic 68 | 13 4 16 . . 35 . . . . . . . Thermal 87 | 13 4 16 . . 26 15 9 . . 4 . . Explosive . | . . . . . . . . . . . . . Electromagnetic . | . . . . . . . . . . . . . Robot Hit Streak 8 | 3 . 6 . . 8 4 3 . . . . . Robot Miss Streak 7 | 2 . 2 . . 7 4 3 . . 1 . . Penetration Max . | . . . . . . . . . . . . . Secondary Targets 3 | . . 2 . . 1 . . . . . . . Max Gunslinging Chain 1 | . . 1 . . 1 . . . . . . . Shots Hit Robots 108 | 14 . 21 . . 42 7 8 . . 4 9 3 Core Hits 54 | 5 . 12 . . 20 3 3 . . 6 4 1 Critical Kills . | . . . . . . . . . . . . . Critical Parts Destroyed 4 | . . . . . 1 . 1 . . 2 . . Critical Strikes 6 | . . 1 . . 1 . 1 . . 3 . . Burn 1 | . . 1 . . . . . . . . . . Destroy 1 | . . . . . 1 . . . . . . . Smash 3 | . . . . . . . 1 . . 2 . . Impale 1 | . . . . . . . . . . 1 . . Melee Attacks 63 | . . . . . . . 9 . . 19 29 6 Impact 29 | . . . . . . . 9 . . 10 8 2 Slashing . | . . . . . . . . . . . . . Piercing 34 | . . . . . . . . . . 9 21 4 Sneak Attacks 7 | . . . . . . . . . . 3 2 2 Combat Hostiles 1 | . . . . . . . . . . . 1 . Follow-up Attacks 3 | . . . . . . . . . . . 3 . Damage Inflicted 2651 | 187 . 275 . . 516 118 329 . . 449 527 250 Guns 1072 | 187 . 275 . . 406 118 86 . . . . . Cannons 100 | . . . . . 100 . . . . . . . Explosions 128 | . . . . . . . . . . 128 . . Melee 1341 | . . . . . . . 243 . . 321 527 250 Ramming 10 | . . . . . 10 . . . . . . . Kinetic 534 | 86 . 126 . . 322 . . . . . . . Thermal 638 | 101 . 149 . . 184 118 86 . . . . . Explosive . | . . . . . . . . . . . . . Electromagnetic 128 | . . . . . . . . . . 128 . . Impact 791 | . . . . . . . 243 . . 253 107 188 Slashing . | . . . . . . . . . . . . . Piercing 550 | . . . . . . . . . . 68 420 62 Highest Corruption 7 | . . . . . . 1 1 7 7 . . . Average Corruption 2 | . . . . . . 1 1 5 6 . . . Corruption Purged . | . . . . . . . . . . . . . Corruption Blocked . | . . . . . . . . . . . . . Effects 6 | . . . . . . 1 3 1 1 . . . Message Errors 2 | . . . . . . . . 1 1 . . . Matter Fused 1 | . . . . . . . 1 . . . . . Data Loss (minor) 2 | . . . . . . 1 1 . . . . . Data Loss (major) 1 | . . . . . . . 1 . . . . . Overload Shots . | . . . . . . . . . . . . . Overflow Damage 571 | . . . . . . . 171 . . 213 135 52 Projectiles . | . . . . . . . . . . . . . Explosions . | . . . . . . . . . . . . . Melee 571 | . . . . . . . 171 . . 213 135 52 Knockbacks 6 | . . . . . 3 . 2 . . 1 . . Impact 3 | . . . . . . . 2 . . 1 . . Kinetic 3 | . . . . . 3 . . . . . . . Secondary . | . . . . . . . . . . . . . Self-Inflicted Damage 90 | . . . . . 4 . . . . 86 . . Shots 2 | . . . . . . . . . . 2 . . Rammed 5 | . . . . . 5 . . . . . . . Targets Rammed 5 | . . . . . 5 . . . . . . . Kicked . | . . . . . . . . . . . . . Crushed . | . . . . . . . . . . . . . Highest Temperature 198 | 54 18 108 . . 198 66 194 . . 154 4 . Average Temperature 45 | 22 10 43 . . 74 19 91 . . 42 1 . Received Heat Transfer 1113 | . 6 18 . . 783 . 60 . . 15 54 177 Siege Activations . | . . . . . . . . . . . . . Robots Corrupted 5 | . . . . . . . 3 . . 2 . . Combat Hostiles . | . . . . . . . . . . . . . Parts Fried 15 | . . . . . . . 3 . . 8 1 3 Impact Corruptions 19 | . . . . . . . 8 . . 8 2 1 Robots Melted . | . . . . . . . . . . . . . Combat Hostiles . | . . . . . . . . . . . . . Parts Melted 2 | . . 1 . . . . 1 . . . . . Heat Transferred 1741 | 296 . 518 . . 483 259 185 . . . . . Parts Sabotaged . | . . . . . . . . . . . . . Parts Stolen . | . . . . . . . . . . . . . Parts Stripped . | . . . . . . . . . . . . . Power Chain Reactions . | . . . . . . . . . . . . . Alert | -11 -10 -10 -10 -9 -8 -7 -6 -6 -6 -5 -4 -4 ------- Run | Yrd Mat Min Exi Min Mat Fac Fac Was Fac Fac Fac Ext Peak Influence 480 | 20 58 235 . 30 260 185 227 79 52 380 480 420 Initial 215 | . 13 22 . . 11 118 90 79 37 25 186 215 Average 131 | 9 17 143 . 1 55 150 155 60 41 176 286 294 Maximum Alert Level 2 | . . 1 . . 1 . 1 . . 1 2 2 Low Security (%) 70 | 100 100 60 . 100 93 100 73 100 100 52 7 . Level 1 27 | . . 39 . . 6 . 26 . . 47 75 87 Level 2 2 | . . . . . . . . . . . 17 12 Level 3 . | . . . . . . . . . . . . . Level 4 . | . . . . . . . . . . . . . Level 5 . | . . . . . . . . . . . . . High Security . | . . . . . . . . . . . . . Max Security . | . . . . . . . . . . . . . Squads Dispatched 18 | . 2 . . . 7 1 . . . 2 2 4 Investigation 5 | . 2 . . . 1 . . . . . 1 1 Extermination 1 | . . . . . . 1 . . . . . . Reinforcement 8 | . . . . . 3 . . . . 1 1 3 Assault . | . . . . . . . . . . . . . Garrison 4 | . . . . . 3 . . . . 1 . . Intercept . | . . . . . . . . . . . . . Searches Triggered . | . . . . . . . . . . . . . Construction Impeded . | . . . . . . . . . . . . . Haulers Reinforced . | . . . . . . . . . . . . . Active Scanning Responses . | . . . . . . . . . . . . . Cargo Convoy Interrupts . | . . . . . . . . . . . . . Stealth | -11 -10 -10 -10 -9 -8 -7 -6 -6 -6 -5 -4 -4 --------- Run | Yrd Mat Min Exi Min Mat Fac Fac Was Fac Fac Fac Ext Distress Signals 4 | . . . . . 2 . . . . 2 . . Communications Jammed . | . . . . . . . . . . . . . Distress Signals . | . . . . . . . . . . . . . Times Spotted 130 | . 3 9 . 2 33 4 9 3 1 14 33 19 Peak Tracking Total 22 | . 2 3 . 2 17 2 5 3 1 7 22 12 Tactical Retreats 19 | . 2 . . 1 5 . 1 . . 4 3 3 Traps | -11 -10 -10 -10 -9 -8 -7 -6 -6 -6 -5 -4 -4 ------- Run | Yrd Mat Min Exi Min Mat Fac Fac Was Fac Fac Fac Ext Traps Triggered 8 | . 1 . . . . 1 3 . . 1 1 1 Indirectly . | . . . . . . . . . . . . . Trap Hack Attempts . | . . . . . . . . . . . . . Triggered . | . . . . . . . . . . . . . Disarmed . | . . . . . . . . . . . . . Reprogrammed . | . . . . . . . . . . . . . Reused . | . . . . . . . . . . . . . Traps Extracted . | . . . . . . . . . . . . . Installed . | . . . . . . . . . . . . . Triggered . | . . . . . . . . . . . . . Machines | -11 -10 -10 -10 -9 -8 -7 -6 -6 -6 -5 -4 -4 ---------- Run | Yrd Mat Min Exi Min Mat Fac Fac Was Fac Fac Fac Ext Machines Disabled 6 | . . . . . . . . . . 6 . . Max in Single Turn 2 | . . . . . . . . . . 2 . . Garrison Access 1 | . . . . . . . . . . . 1 . Machines Repaired . | . . . . . . . . . . . . . Machines Dismantled . | . . . . . . . . . . . . . Machines Sabotaged . | . . . . . . . . . . . . . Overloaded Fab Kills . | . . . . . . . . . . . . . Hacking | -11 -10 -10 -10 -9 -8 -7 -6 -6 -6 -5 -4 -4 --------- Run | Yrd Mat Min Exi Min Mat Fac Fac Was Fac Fac Fac Ext Machines Accessed 9 | . 3 . 2 . . . . . . 1 2 1 Terminals 6 | . 3 . . . . . . . . 1 1 1 Fabricators . | . . . . . . . . . . . . . Repair Stations . | . . . . . . . . . . . . . Recycling Units . | . . . . . . . . . . . . . Scanalyzers . | . . . . . . . . . . . . . Garrison Access 1 | . . . . . . . . . . . 1 . Total Hacks 26 | . 10 . 2 . . . . . . 3 7 4 Successful 12 | . 5 . 2 . . . . . . 3 2 . Failed 14 | . 5 . . . . . . . . . 5 4 Catastrophic 3 | . 2 . . . . . . . . . . 1 Database Lockouts . | . . . . . . . . . . . . . Manual . | . . . . . . . . . . . . . Terminals 19 | . 10 . . . . . . . . 3 2 4 Fabricators . | . . . . . . . . . . . . . Repair Stations . | . . . . . . . . . . . . . Recycling Units . | . . . . . . . . . . . . . Scanalyzers . | . . . . . . . . . . . . . Garrison Access 5 | . . . . . . . . . . . 5 . Terminal Hacks 11 | . 5 . 2 . . . . . . 3 1 . Record 4 | . . . 2 . . . . . . 2 . . Level Access Points 1 | . . . . . . . . . . 1 . . Alert Level 2 | . 2 . . . . . . . . . . . Locate Traps 1 | . . . . . . . . . . . 1 . Transport Status 1 | . 1 . . . . . . . . . . . Reinforcement Status 1 | . 1 . . . . . . . . . . . Zone Layout 1 | . 1 . . . . . . . . . . . Fabricator Hacks . | . . . . . . . . . . . . . Repair Station Hacks . | . . . . . . . . . . . . . Recycling Unit Hacks . | . . . . . . . . . . . . . Scanalyzer . | . . . . . . . . . . . . . Garrison Access Hacks 1 | . . . . . . . . . . . 1 . Seal Access 1 | . . . . . . . . . . . 1 . Unauthorized Hacks . | . . . . . . . . . . . . . Terminals . | . . . . . . . . . . . . . Fabricators . | . . . . . . . . . . . . . Repair Stations . | . . . . . . . . . . . . . Recycling Units . | . . . . . . . . . . . . . Scanalyzers . | . . . . . . . . . . . . . Garrison Access . | . . . . . . . . . . . . . Data Cores Recovered 1 | . . . . . . . . . . 1 . . Used . | . . . . . . . . . . . . . Hacking Detections 5 | . 3 . . . . . . . . . 1 1 Full Trace Events 2 | . 1 . . . . . . . . . . 1 Feedback Events . | . . . . . . . . . . . . . Feedback Blocked . | . . . . . . . . . . . . . Robot Schematics Acquired . | . . . . . . . . . . . . . Robots Built . | . . . . . . . . . . . . . Authchips . | . . . . . . . . . . . . . Time . | . . . . . . . . . . . . . Total Robot Build Rating . | . . . . . . . . . . . . . Part Schematics Acquired . | . . . . . . . . . . . . . Parts Built . | . . . . . . . . . . . . . Authchips . | . . . . . . . . . . . . . Time . | . . . . . . . . . . . . . Total Part Build Rating . | . . . . . . . . . . . . . Parts Repaired . | . . . . . . . . . . . . . Time . | . . . . . . . . . . . . . Parts Recycled . | . . . . . . . . . . . . . Recycled Matter . | . . . . . . . . . . . . . Retrieved Matter . | . . . . . . . . . . . . . Retrieved Components . | . . . . . . . . . . . . . Parts Scanalyzed . | . . . . . . . . . . . . . Part Schematics Acquired . | . . . . . . . . . . . . . Parts Damaged . | . . . . . . . . . . . . . Bothacking | -11 -10 -10 -10 -9 -8 -7 -6 -6 -6 -5 -4 -4 ------------ Run | Yrd Mat Min Exi Min Mat Fac Fac Was Fac Fac Fac Ext Used RIF Installer . | . . . . . . . . . . . . . Robots Hacked . | . . . . . . . . . . . . . Non-combat . | . . . . . . . . . . . . . Combat . | . . . . . . . . . . . . . Robot Hacks Applied . | . . . . . . . . . . . . . Relay Couplers Released . | . . . . . . . . . . . . . Fabnet Peak Effective % . | . . . . . . . . . . . . . Robots Rewired . | . . . . . . . . . . . . . Allies Hacked . | . . . . . . . . . . . . . Hacks Repelled . | . . . . . . . . . . . . . Allies | -11 -10 -10 -10 -9 -8 -7 -6 -6 -6 -5 -4 -4 -------- Run | Yrd Mat Min Exi Min Mat Fac Fac Was Fac Fac Fac Ext Total Allies 2 | . . 1 . . . . . 1 . . . . Largest Group 1 | . . 1 1 . . . . 1 . . . . Highest-Rated Group 31 | . . 31 31 . . . . 31 . . . . Highest-Rated Ally 31 | . . 31 31 . . . . 31 . . . . Total Orders . | . . . . . . . . . . . . . Ally Attacks 5 | . . 3 . . . . . 2 . . . . Total Damage 83 | . . 42 . . . . . 41 . . . . Kills 1 | . . 1 . . . . . . . . . . Allies Corrupted . | . . . . . . . . . . . . . Allies Melted . | . . . . . . . . . . . . . Intel | -11 -10 -10 -10 -9 -8 -7 -6 -6 -6 -5 -4 -4 ------- Run | Yrd Mat Min Exi Min Mat Fac Fac Was Fac Fac Fac Ext Robot Analysis Total . | . . . . . . . . . . . . . Derelict Logs Recovered 1 | . . 1 . . . . . . . . . . Drone Launches . | . . . . . . . . . . . . . Drone Recoveries . | . . . . . . . . . . . . . Exploration | -11 -10 -10 -10 -9 -8 -7 -6 -6 -6 -5 -4 -4 ------------- Run | Yrd Mat Min Exi Min Mat Fac Fac Was Fac Fac Fac Ext Turns Passed 2927 | 115 227 224 560 84 347 263 245 68 118 248 213 215 Spaces Moved 3882 | 59 175 132 467 69 238 475 455 188 295 508 418 403 Core 299 | 21 . . . . 45 . . . . . . 233 Treads . | . . . . . . . . . . . . . Legs 981 | 38 175 132 467 69 100 . . . . . . . Wheels . | . . . . . . . . . . . . . Hover . | . . . . . . . . . . . . . Flight 2602 | . . . . . 93 475 455 188 295 508 418 170 Fastest Speed 24 | 50 120 120 120 120 40 37 34 34 34 32 24 27 Average Speed 58 | 101 120 120 120 120 85 44 35 34 34 32 29 45 Slowest Speed 250 | 150 120 120 120 120 250 120 37 37 34 34 32 150 Overloaded Moves . | . . . . . . . . . . . . . Propulsion Burnouts . | . . . . . . . . . . . . . Robots Hopped 11 | . . . . . 4 . . . . 2 3 2 Cave-ins Triggered . | . . . . . . . . . . . . . Exploration Rate (%) 31 | 3 27 32 89 23 31 16 13 91 6 17 17 47 Regions Visited 12 Branch Regions 4 Pre-discovered Areas 1 | . . 1 . . . . . . . . . . Known Exits Taken 3 | . . . . . . . . . 1 1 1 . Unknown Exits Taken 7 | 1 1 1 1 1 1 1 . . . . . . Scrap Searched . | . . . . . . . . . . . . . Spaces Dug 24 | . . . . . . . 4 . . 11 9 . Terrain Destroyed 24 | . . . . . . . 4 . . 11 9 . Melee 24 | . . . . . . . 4 . . 11 9 . Projectile . | . . . . . . . . . . . . . AOE . | . . . . . . . . . . . . . Terrain Rammed . | . . . . . . . . . . . . . Walls Destroyed . | . . . . . . . . . . . . . Machines Disabled . | . . . . . . . . . . . . . Actions | -11 -10 -10 -10 -9 -8 -7 -6 -6 -6 -5 -4 -4 --------- Run | Yrd Mat Min Exi Min Mat Fac Fac Was Fac Fac Fac Ext Total 4265 | 86 184 164 466 69 324 512 513 192 312 551 469 423 Wait 57 | . . 10 . . 9 1 13 . 11 . 6 7 Move 3851 | 58 174 131 466 68 230 474 455 187 294 503 412 399 Hop 9 | . . . . . 3 . . . . 2 2 2 Pick Up 55 | 7 3 2 . . 15 7 5 2 3 5 6 . Fast Attach 18 | 3 . . . . 1 2 5 . . 2 4 1 Attach 43 | 4 . . . . 15 9 4 1 3 2 5 . Detach 6 | . . . . . 2 3 1 . . . . . Swap 14 | 1 1 4 . 1 1 . 3 . . . 3 . Drop 39 | . 2 1 . . 9 1 9 2 1 3 10 1 Fire 95 | 13 4 16 . . 34 15 9 . . 4 . . Melee 51 | . . . . . . . 9 . . 16 21 5 Ram 5 | . . . . . 5 . . . . . . . Kick . | . . . . . . . . . . . . . Crush . | . . . . . . . . . . . . . Escape Stasis 22 | . . . . . . . . . . 14 . 8 Rewire . | . . . . . . . . . . . . . Trap . | . . . . . . . . . . . . . Miscellaneous . | . . . . . . . . . . . . . Route ------- -11/Scrapyard -10/Materials -10/Mines -10/Exiles -9/Mines -8/Materials -7/Factory -6/Factory -6/Waste -6/Factory (discovered 2 exits: *Fac / *Low) -5/Factory (discovered 5 exits: *Fac x4 / *Upp) -4/Factory -4/Extension History --------- Turn | Location | Event 3 | -11/Scrapyard | Discovered new exit (range 15) 116 | -11/Scrapyard | Entered Materials 294 | -10/Materials | Discovered new exit (range 11) 311 | -10/Materials | Build established: Mutant 343 | -10/Materials | Entered Mines 345 | -10/Mines | Escorted by a lone wolf Derelict 365 | -10/Mines | Learned location of Storage (-9) 383 | -10/Mines | Found a hidden stash of uninstalled traps 434 | -10/Mines | Excavation squad dispatched 434 | -10/Mines | A large section of the Mines collapsed 434 | -10/Mines | Learned Materials emergency access door positions 503 | -10/Mines | Destroyed 7 combat bots 506 | -10/Mines | Found a damaged Exp. Sensor Array with a note attached 509 | -10/Mines | Found Prototype Device 510 | -10/Mines | Identified Exp. Sensor Array 552 | -10/Mines | Deemed a non-threat by the Exiles lab entrance 552 | -10/Mines | Discovered new exit (range 5) 567 | -10/Mines | Entered Exiles 567 | -10/Exiles | Found Exiles lab abandoned 567 | -10/Exiles | Accompanied by 1 ally 1115 | -10/Exiles | Discovered new exit (range 11) 1127 | -10/Exiles | Entered Mines 1148 | -9/Mines | Assembled infested the area 1153 | -9/Mines | Assisted by a Guerilla fighting off Assembled 1202 | -9/Mines | Discovered new exit (range 7) 1211 | -9/Mines | Entered Materials 1211 | -8/Materials | Evolved 4 slots: Propulsion x1, Utility x2, Weapon x1 1504 | -8/Materials | Core integrity fell below 50% 1518 | -8/Materials | Lost 10 parts (1p3n2u4w) 1535 | -8/Materials | Core integrity fell below 20% 1544 | -8/Materials | Discovered new exit (range 12) 1558 | -8/Materials | Entered Factory 1558 | -7/Factory | Evolved 2 slots: Utility x2 1741 | -7/Factory | Discovered new exit (range 11) 1821 | -7/Factory | Entered another Factory area 1821 | -6/Factory | Evolved 2 slots: Power x1, Utility x1 2066 | -6/Factory | Manually triggered Chute Trap 2066 | -6/Factory | Sucked down chute 2066 | -6/Factory | Entered Waste 2067 | -6/Waste | Met a frightened Derelict 2071 | -6/Waste | Spotted C-40 Crusher 2081 | -6/Waste | EMP discharged 2082 | -6/Waste | Spotted C-40 Crusher 2082 | -6/Waste | Spotted C-40 Crusher 2085 | -6/Waste | Crushed by Compactor (1 part destroyed, 1 dropped) 2090 | -6/Waste | Spotted C-40 Crusher 2093 | -6/Waste | Discovered new exit (range 12) 2124 | -6/Waste | Spotted C-40 Crusher 2134 | -6/Waste | Identified exit to Factory 2134 | -6/Waste | Entered Factory 2136 | -6/Factory | Discovered new exit (range 15) 2165 | -6/Factory | Discovered new exit (range 12) 2178 | -6/Factory | Identified exit to Factory 2228 | -6/Factory | Identified exit to Lower Caves 2252 | -6/Factory | Entered another Factory area 2252 | -5/Factory | Evolved 2 slots: Propulsion x1, Utility x1 2257 | -5/Factory | Discovered new exit (range 8) 2259 | -5/Factory | Identified exit to Upper Caves 2318 | -5/Factory | Garrison activated, responded to threat 2413 | -5/Factory | Identified exit to Factory 2500 | -5/Factory | Entered another Factory area 2500 | -4/Factory | Evolved 2 slots: Utility x2 2663 | -4/Factory | Discovered new exit (range 11) 2712 | -4/Factory | Identified exit to Extension 2713 | -4/Factory | Entered Extension 2743 | -4/Extension | Lost 6 parts (1p2n3u) 2797 | -4/Extension | Lost 3 parts (1p2n) 2809 | -4/Extension | Spotted B-86 Titan 2812 | -4/Extension | Spotted B-86 Titan 2821 | -4/Extension | Core integrity fell below 50% 2849 | -4/Extension | Lost 6 parts (1n4u1w) 2925 | -4/Extension | Core integrity fell below 20% 2928 | -4/Extension | Destroyed by Y-64 Sentinel with KE Penetrator Last Messages --------------- Penetrated by Slug. B-86 Titan activates siege mode. Penetrated by Slug. K-01 Serf enters Transfer Station. U-05 Engineer enters Transfer Station. K-01 Serf enters Transfer Station. T-07 Excavator enters Transfer Station. U-05 Engineer enters Transfer Station. K-01 Serf enters Transfer Station. Penetrated by Slug. U-05 Engineer destroyed. Penetrated by Slug. K-01 Serf destroyed. Penetrated by Slug. Knocked back. Slug penetrates K-01 Serf. Penetrated by Slug. Slug penetrates R-10 Processor. R-10 Processor suffers critical hit (Destroy). Penetrated by Slug. Map ----- +----------------------------------------------------+ | ???????????? #### ##????????????? | | ???????????? + ##????????????? | | ???????????? # """ """ ##????????????? | | ?????????? ! / """T""" ##????????????? | | ??????# #############+##+#### ##????????????? | | ??????#################### ### ##????????????? | | ??????#######???????????## ????## ##????????????? | | ????????????????????????## ???## ##????????????? | | ????????????????????????##/ ???## ##????????????? | | ????????????????????????## = ??##!##????????????? | | ????????????????????????## [ ??##%##????????????? | | ????????????????????????## ###!##????????????? | | ????????????????????????#########"%##????????????? | | ?????????????????????????######### ##????????????? | | ?????????????????????????????????# #?????????????? | | ?????????????????????????????????# #???#??#??????? | | ???????????????????????????????### ### ## ### ???? | | ???????????????????????????????#"" "" "" "??? | | ??????????????????????????????## " % " "??? | | ??????????????????????????????#" % #? | | ???????????????????????????####" BB #? | | ################################ BB #? | | Y Y %Y YR ? | | / R ?? | | = ?? | | == !% @ R ?? | | *%! Au R A tk RRBB ??? | | #################;#############; BB ??? | | ???????????????????????????????# ???? | | ???????????????????????????????# ???? | | ???????????????????????????????# ????? | | ???????????????????????????????# ?????? | | ???????????????????????????????######T#"""##?????? | | ?????????????????????????????????????##??????????? | | ?????????????????????????????????????????????????? | | | | | | | | | | | | | | | | | | | | | | | | | | | | | | | +----------------------------------------------------+ Best States ------------- Heat Dissipation 45 Energy Generation 25 Energy Capacity 250 Matter Stores 300 Matter Capacity 300 Sight Range 20 Robot Scan Range 20 Terrain Scan Range 16 Terrain Scan Density 10 Additional Mass Support 9 Corruption Containment 8 Armor Coverage 150 Evasion (%) 72 Targeting Accuracy 16 Recoil Reduction 4 Defensive Hacking 24 Item Schematics ----------------- None Robot Schematics ------------------ None Fabricated ------------ Nothing Alien Tech Used ----------------- None Achievements -------------- Deadly Force Part-time Excavator Wheee! Challenges ------------ None Game ------ Seed BattleCouplerAxe Manual? 0 Play Time 00:44:49 Cumulative 40.6 hours Start 2024.10.27 @ 17:42:15 End 2024.10.27 @ 18:24:07 Sessions 1 Manual Loads 0 Difficulty Rogue Special Mode None Game No. 52 Rogue 52 Adventurer 0 Explorer 0 Win Type - Total 0 Types 0/0/0/0/0/0/0/0/0 Lore% 20 Gallery% 40 Achievement% 27 Wizard Run 0 Options --------- Layout 1 ASCII 0 Keyboard 0 Movement Mouse Keybinds 0 Fullscreen 1 Font 24/Smallcaps Map View 50x40 Zoom Use 0% Tactical HUD 0 Map Filters NONE Filters NONE Steam 1 RUN: a66594b8-4131-45c3-8fa9-63d14663e91f